bitfinex-derivatives/quotes_ETHF0:USTF0_20210407
["timestamp","ask_amount","ask_price","bid_price","bid_amount"]
[1617775078470,2.90695,2098.8,2098.7,5.85]
[1617775079670,2.90695,2098.8,2098.7,35.85]
[1617775080470,2.90695,2098.8,2098.7,37.85]
[1617775084871,66.39855,2099.6,2098.7,37.85]
[1617775085072,66.39855,2099.6,2098.7,40.1012]
[1617775086575,66.39855,2099.6,2099.5,2.90695]
[1617775086975,66.39855,2099.6,2099.5,8.90695]
[1617775088078,66.39855,2099.6,2099.5,6.0]
[1617775088576,69.3055,2099.6,2099.1,2.90695]
[1617775088975,69.3055,2099.6,2099.2,5.74]
[1617775090678,2.90695,2099.3,2099.2,5.74]
[1617775091281,5.69385,2099.3,2099.2,5.74]
[1617775091679,5.69385,2099.3,2098.2,7.89]
[1617775091878,5.69385,2099.3,2099.2,5.79]
[1617775092279,62.8553,2098.6,2098.3,5.83]
[1617775092679,62.8553,2098.6,2098.4,2.90695]
[1617775093079,62.8553,2098.6,2098.5,5.71]
[1617775094784,65.76225,2098.6,2098.5,5.71]
[1617775096682,2.90695,2098.6,2098.5,5.71]
[1617775098387,2.90695,2098.6,2098.5,8.8127]
[1617775099690,2.90695,2098.6,2098.5,5.71]
[1617775100492,2.90695,2098.6,2098.5,6.6766]
[1617775102091,2.90695,2098.6,2098.5,5.71]
[1617775102291,74.65765,2098.6,2098.5,5.71]
[1617775104195,74.65765,2098.6,2098.2,5.84]
[1617775104594,74.65765,2098.6,2098.5,5.96]
[1617775104795,74.65765,2098.6,2098.5,2.90695]
[1617775105195,74.65765,2098.6,2098.5,8.69695]
[1617775106295,2.90695,2098.6,2098.5,8.69695]
[1617775106895,2.90695,2098.6,2098.5,10.80885]
[1617775108597,2.90695,2098.6,2098.5,8.69695]
[1617775109198,2.90695,2098.6,2098.5,5.79]
[1617775109598,2.90695,2098.6,2098.2,5.83]
[1617775109998,2.90695,2098.6,2098.5,5.88]
[1617775110199,2.90695,2098.6,2098.2,5.78]
[1617775110600,2.90695,2098.6,2098.5,5.75]
[1617775110999,2.90695,2098.6,2098.3,2.90695]
[1617775111201,2.90695,2098.6,2098.5,5.95]
[1617775111600,2.90695,2098.6,2098.4,5.88]
[1617775111802,2.90695,2098.6,2098.5,5.71]
[1617775112200,2.90695,2098.6,2098.4,5.96]
[1617775112602,2.90695,2098.6,2098.5,5.78]
[1617775112805,2.90695,2098.6,2098.4,5.78]
[1617775113205,2.90695,2098.6,2098.5,5.79]
[1617775113404,2.90695,2098.6,2098.4,5.89]
[1617775119916,2.90695,2098.6,2098.4,35.89]
[1617775121016,2.90695,2098.9,2098.4,35.89]
[1617775121215,2.90695,2098.9,2098.4,38.1143]
[1617775122018,2.90695,2098.9,2098.5,2.0]
[1617775122216,2.90695,2098.9,2098.6,5.9]
[1617775122617,2.90695,2098.9,2098.6,35.9]
[1617775123017,2.90695,2098.9,2098.8,2.90695]
[1617775123217,2.90695,2098.9,2098.8,8.73695]
[1617775128222,2.90695,2098.9,2098.8,10.72475]
[1617775130725,2.90695,2098.9,2098.8,8.73695]
[1617775130925,2.90695,2098.9,2098.8,5.83]
[1617775131324,2.90695,2098.9,2098.6,2.90695]
[1617775131525,2.90695,2098.9,2098.7,5.8]
[1617775131725,2.90695,2098.9,2098.8,5.84]
[1617775131927,2.90695,2098.9,2098.6,2.90695]
[1617775132126,2.90695,2098.9,2098.7,5.9]
[1617775132326,2.90695,2098.9,2098.8,5.81]
[1617775132525,2.90695,2098.9,2098.6,2.90695]
[1617775132727,2.90695,2098.9,2098.7,5.87]
[1617775132928,75.7198,2099.5,2098.8,5.79]
[1617775133127,75.7198,2099.5,2098.6,2.90695]
[1617775133526,75.7198,2099.5,2098.8,5.96]
[1617775133727,75.7198,2099.5,2098.7,5.92]
[1617775134127,75.7198,2099.5,2098.9,5.75]
[1617775134529,75.7198,2099.5,2098.7,5.75]
[1617775134929,75.7198,2099.5,2099.0,5.82]
[1617775135129,75.7198,2099.5,2098.9,2.90695]
[1617775135529,75.7198,2099.5,2099.1,5.78]
[1617775135729,75.7198,2099.5,2099.0,3.43]
[1617775135929,75.7198,2099.5,2098.9,2.90695]
[1617775136128,75.7198,2099.5,2099.2,5.99]
[1617775136328,75.7198,2099.5,2099.0,5.99]
[1617775137029,2.90695,2099.1,2099.0,6.9336]
[1617775137436,2.90695,2099.1,2099.0,5.99]
[1617775140735,4.16931229,2099.6,2099.0,5.99]
[1617775141134,4.16931229,2099.6,2099.5,2.90695]
[1617775141335,4.16931229,2099.6,2099.0,5.99]
[1617775141535,4.11305,2099.6,2099.5,5.85]
[1617775141736,4.11305,2099.6,2098.4,2.0]
[1617775141737,4.16931139,2099.6,2099.1,5.95]
[1617775141935,73.9212,2099.2,2099.1,5.95]
[1617775142135,76.8939,2099.2,2098.5,3.29]
[1617775142336,76.8939,2099.2,2098.4,2.0]
[1617775142536,76.8939,2099.2,2098.5,5.72]
[1617775143135,76.8939,2099.2,2099.1,2.90695]
[1617775143437,76.8939,2099.2,2099.1,8.66695]
[1617775144238,2.9727,2099.2,2099.1,8.66695]
[1617775144438,4.16931139,2099.6,2099.1,8.66695]
[1617775144839,4.16931139,2099.6,2099.1,5.76]
[1617775145038,2.90695,2099.2,2099.1,5.76]
[1617775145339,2.90695,2099.2,2099.0,2.90695]
[1617775145540,2.90695,2099.2,2099.1,5.8]
[1617775149043,2.90695,2099.2,2098.8,5.77]
[1617775149244,2.90695,2099.2,2099.1,5.71]
[1617775149644,2.90695,2099.2,2098.9,5.95]
[1617775149844,2.90695,2099.2,2098.6,0.51]
[1617775150045,2.90695,2099.2,2099.1,5.95]
[1617775150244,2.90695,2099.2,2099.0,5.86]
[1617775150645,2.90695,2099.2,2099.1,5.99]
[1617775150846,2.90695,2099.2,2098.5,89.05325]
[1617775151049,0.05630406,2099.4,2099.0,2.90695]
[1617775151246,4.11305,2099.6,2099.0,2.90695]
[1617775151247,0.0563035,2099.5,2099.0,2.90695]
[1617775151648,0.05630421,2099.4,2099.1,5.86]
[1617775152047,0.05630468,2099.5,2099.1,5.86]
[1617775152847,4.16935084,2099.6,2099.1,5.86]
[1617775153047,4.16935084,2099.6,2099.5,2.90695]
[1617775153447,4.16935084,2099.6,2099.5,8.88695]
[1617775155147,7.07630084,2099.6,2099.5,8.88695]
[1617775156949,7.02,2099.6,2099.5,8.88695]
[1617775158251,7.07631097,2099.6,2099.5,8.88695]
[1617775159654,7.02,2099.6,2099.5,8.88695]
[1617775172866,7.02,2099.6,2099.5,11.30485]
[1617775176969,7.02,2099.6,2099.5,8.88695]
[1617775177771,7.07637573,2099.6,2099.5,8.88695]
[1617775179471,7.02,2099.6,2099.5,8.88695]
[1617775180373,7.0763983,2099.6,2099.5,8.88695]
[1617775184882,7.0763983,2099.6,2099.5,11.19345]
[1617775185681,4.1694483,2099.6,2099.5,41.19345]
[1617775186082,0.05636217,2100.2,2099.5,41.19345]
[1617775186283,0.05636217,2100.2,2099.6,62.5633]
[1617775186483,0.05635679,2100.4,2099.7,30.0]
[1617775186681,0.05635679,2100.4,2099.8,2.0]
[1617775186882,0.05635679,2100.4,2099.8,5.98]
[1617775187087,57.31305679,2100.4,2099.8,5.98]
[1617775187287,57.31305679,2100.4,2099.6,5.72]
[1617775187487,60.08655679,2100.4,2100.0,2.90695]
[1617775187687,60.0302,2100.4,2100.1,3.64]
[1617775188091,60.70661241,2100.4,2100.1,3.64]
[1617775188488,3.44991241,2100.4,2100.1,3.64]
[1617775188889,0.67643727,2100.3,2100.1,3.64]
[1617775189488,2.90695,2100.2,2100.1,3.64]
[1617775192191,14.90695,2100.2,2100.1,3.64]
[1617775198604,12.0,2100.2,2100.1,3.64]
[1617775199405,12.0,2100.2,2100.1,33.64]
[1617775200409,12.0,2100.2,2100.1,3.64]
[1617775203013,12.0,2100.2,2100.1,33.64]
[1617775204613,10.995,2100.2,2100.1,33.64]
[1617775205012,7.6958,2100.2,2100.1,35.64]
[1617775205414,0.67328551,2102.0,2100.1,35.64]
[1617775205614,0.67328551,2102.0,2100.2,59.6298]
[1617775205814,0.67328301,2102.1,2100.3,30.0]
[1617775206015,0.67328301,2102.1,2101.3,2.90695]
[1617775206214,0.67328301,2102.1,2100.6,2.8723]
[1617775206414,0.67328301,2102.1,2101.4,5.81]
[1617775206614,60.8655,2101.9,2100.7,5.92]
[1617775206819,61.5388141,2101.9,2100.7,5.92]
[1617775207014,61.5388141,2101.9,2100.4,5.76]
[1617775207214,61.5388141,2101.9,2100.8,5.92]
[1617775207614,61.5388141,2101.9,2100.5,5.94]
[1617775208016,2.90695,2100.6,2100.5,2.90695]
[1617775208416,2.90695,2100.6,2100.5,8.74695]
[1617775208915,63.91938763,2101.7,2100.5,8.74695]
[1617775208916,5.77138763,2101.7,2100.5,38.74695]
[1617775209116,5.77138763,2101.7,2101.6,76.0486]
[1617775209316,5.77138763,2101.7,2101.6,78.6561]
[1617775209518,5.098,2101.7,2101.6,84.5761]
[1617775209918,5.098,2101.7,2101.6,87.48305]
[1617775210519,2.90695,2101.9,2101.6,87.48305]
[1617775212018,2.90695,2101.9,2101.7,30.0]
[1617775212218,2.90695,2101.9,2101.8,5.79]
[1617775213019,2.90695,2101.9,2101.7,5.78]
[1617775213421,2.90695,2101.9,2101.8,5.81]
[1617775213620,2.90695,2101.9,2101.7,5.9]
[1617775213820,2.90695,2101.9,2101.7,35.9]
[1617775214820,2.90695,2101.9,2101.7,37.9]
[1617775217824,5.098,2103.3,2101.7,37.9]
[1617775218026,5.098,2103.3,2102.7,2.90695]
[1617775218225,5.098,2103.3,2102.8,65.3587]
[1617775218427,5.098,2103.3,2102.8,71.2987]
[1617775218830,5.098,2103.3,2102.8,101.2987]
[1617775219427,5.098,2103.3,2102.8,35.94]
[1617775220027,5.098,2103.3,2103.2,2.90695]
[1617775220226,5.098,2103.3,2103.2,5.47785]
[1617775220427,2.90695,2103.7,2103.2,11.25785]
[1617775221629,2.90695,2103.7,2103.3,73.719]
[1617775221929,2.90695,2103.7,2103.4,5.74]
[1617775222129,2.90695,2103.7,2103.6,2.90695]
[1617775222329,2.90695,2103.7,2103.4,5.74]
[1617775222529,2.90695,2103.7,2103.6,5.82]
[1617775222730,2.90695,2103.7,2103.4,5.8]
[1617775223130,2.90695,2103.7,2103.6,0.44]
[1617775223330,2.90695,2103.7,2102.6,0.53]
[1617775223531,2.90695,2103.7,2103.4,5.7]
[1617775223729,2.90695,2103.7,2102.5,60.4863]
[1617775223730,2.90695,2103.7,2103.6,5.77]
[1617775224130,2.90695,2103.7,2103.5,5.4]
[1617775224330,4.97235,2103.7,2103.6,5.83]
[1617775224735,4.97235,2103.7,2102.7,2.90695]
[1617775224931,4.97235,2103.7,2103.6,5.96]
[1617775225331,4.97235,2103.7,2102.8,5.95]
[1617775225531,4.97235,2103.7,2102.7,2.90695]
[1617775225731,4.97235,2103.7,2103.6,5.94]
[1617775225932,2.90695,2103.7,2102.8,5.7]
[1617775226133,2.0,2104.0,2103.0,59.6808]
[1617775226332,2.0,2104.0,2103.6,5.9]
[1617775226531,0.66989659,2104.2,2103.1,5.93]
[1617775226732,0.66989659,2104.2,2103.0,59.6808]
[1617775226931,0.66989659,2104.2,2103.7,5.82]
[1617775227132,0.66989659,2104.2,2103.1,5.94]
[1617775227533,0.66989659,2104.2,2103.8,5.96]
[1617775227734,0.66987557,2104.3,2103.8,5.96]
[1617775227933,0.66987557,2104.3,2103.8,67.4861]
[1617775228133,2.90695,2103.9,2103.8,67.4861]
[1617775228534,2.90695,2103.9,2103.8,73.1861]
[1617775232142,2.90695,2103.9,2103.8,76.09305]
[1617775232542,2.90695,2103.9,2103.8,8.60695]
[1617775232743,2.90695,2103.9,2103.8,5.7]
[1617775232943,2.90695,2103.9,2103.0,5.7]
[1617775233143,2.90695,2103.9,2103.1,30.0]
[1617775233344,2.90695,2103.9,2103.8,57.5946]
[1617775233743,2.90695,2103.9,2103.8,61.0746]
[1617775235547,15.90695,2103.9,2103.8,61.0746]
[1617775237449,15.90695,2103.9,2103.8,3.48]
[1617775242459,15.90695,2103.9,2103.7,5.86]
[1617775242859,15.90695,2103.9,2103.8,5.81]
[1617775243061,15.90695,2103.9,2103.7,5.78]
[1617775243459,15.90695,2103.9,2103.8,5.79]
[1617775243660,15.90695,2103.9,2103.7,5.74]
[1617775243959,15.90695,2103.9,2103.8,5.81]
[1617775244361,15.90695,2103.9,2103.7,5.93]
[1617775244560,15.90695,2103.9,2103.8,5.85]
[1617775244959,15.90695,2103.9,2103.7,5.88]
[1617775245159,15.90695,2103.9,2103.8,5.85]
[1617775245563,15.90695,2103.9,2103.7,5.95]
[1617775246563,15.90695,2103.9,2103.2,5.87]
[1617775246763,15.90695,2103.9,2103.8,5.83]
[1617775247164,15.90695,2103.9,2103.2,5.82]
[1617775247364,15.90695,2103.9,2103.8,5.95]
[1617775247765,95.14935,2103.9,2103.2,5.74]
[1617775247966,95.14935,2103.9,2103.8,5.97]
[1617775248367,95.14935,2103.9,2103.3,5.94]
[1617775248566,95.14935,2103.9,2103.8,5.95]
[1617775248967,95.14935,2103.9,2103.4,5.76]
[1617775249166,95.14935,2103.9,2103.8,5.87]
[1617775249568,95.14935,2103.9,2103.1,5.88]
[1617775249767,95.14935,2103.9,2103.8,5.81]
[1617775250166,95.14935,2103.9,2103.1,5.84]
[1617775250366,95.14935,2103.9,2103.0,2.90695]
[1617775250567,95.14935,2103.9,2103.8,5.99]
[1617775250767,95.14935,2103.9,2103.1,5.73]
[1617775251166,95.14935,2103.9,2103.0,2.90695]
[1617775251167,95.14935,2103.9,2103.8,5.86]
[1617775251366,95.14935,2103.9,2103.1,5.77]
[1617775251767,95.14935,2103.9,2103.8,5.73]
[1617775251967,95.14935,2103.9,2103.1,5.78]
[1617775252169,2.90695,2103.2,2103.1,5.78]
[1617775252367,2.90695,2103.2,2103.0,2.90695]
[1617775252567,2.90695,2103.2,2103.1,5.94]
[1617775253567,2.90695,2103.2,2103.1,8.1378]
[1617775253967,92.2424,2103.9,2103.1,8.1378]
[1617775254368,13.0,2103.9,2103.6,2.90695]
[1617775254570,13.0,2103.9,2103.6,5.61045]
[1617775254772,13.0,2103.9,2103.7,5.78]
[1617775256273,2.90695,2103.8,2103.7,5.78]
[1617775258773,3.86885,2103.8,2103.7,5.78]
[1617775258973,2.90695,2103.8,2103.7,5.78]
[1617775261879,3.85545,2103.8,2103.7,5.78]
[1617775262080,2.90695,2103.8,2103.7,5.78]
[1617775264580,5.26365,2103.8,2103.7,5.78]
[1617775264982,5.26365,2103.8,2103.1,5.82]
[1617775265382,5.26365,2103.8,2103.7,5.89]
[1617775265582,5.26365,2103.8,2103.1,5.73]
[1617775265783,6.22805,2103.8,2103.1,5.73]
[1617775265982,6.22805,2103.8,2103.7,5.73]
[1617775266182,5.26365,2103.8,2103.1,5.88]
[1617775266382,2.90695,2103.2,2103.1,5.88]
[1617775266585,5.10615,2103.2,2103.1,5.88]
[1617775267884,2.90695,2103.2,2103.1,5.88]
[1617775269182,2.90695,2103.2,2102.4,5.86]
[1617775269584,2.90695,2103.2,2103.1,5.98]
[1617775269784,2.90695,2103.2,2102.4,5.85]
[1617775269984,2.90695,2103.2,2101.8,2.0]
[1617775269985,55.8571,2103.0,2101.9,5.86]
[1617775270387,55.8571,2103.0,2102.1,2.90695]
[1617775270786,55.8571,2103.0,2102.2,5.79]
[1617775271586,1.8825,2103.2,2102.2,5.79]
[1617775271785,1.8825,2103.2,2102.4,68.6616]
[1617775272086,18.7971,2103.9,2102.4,68.6616]
[1617775272087,15.0,2103.9,2102.4,68.6616]
[1617775272287,15.0,2103.9,2102.7,2.90695]
[1617775272486,13.0,2103.9,2102.7,2.90695]
[1617775272687,13.0,2103.9,2102.8,5.7]
[1617775272887,15.0,2103.9,2102.8,5.7]
[1617775273487,32.0,2103.8,2102.8,5.7]
[1617775273888,32.0,2103.8,2102.5,5.95]
[1617775274089,32.0,2103.8,2102.9,5.91]
[1617775274290,2.90695,2103.0,2102.5,5.82]
[1617775274689,2.90695,2103.0,2102.4,68.6616]
[1617775275090,2.90695,2103.0,2102.6,5.75]
[1617775275290,2.90695,2103.0,2102.5,5.91]
[1617775275490,2.90695,2103.0,2102.4,71.733]
[1617775275692,2.90695,2103.0,2102.7,5.92]
[1617775275891,2.90695,2103.0,2102.5,5.97]
[1617775276091,2.90695,2103.0,2102.4,71.733]
[1617775276291,13.0,2103.9,2102.8,5.79]
[1617775276492,13.0,2103.9,2102.5,5.88]
[1617775276791,13.0,2103.9,2102.9,5.84]
[1617775276990,13.0,2103.9,2102.9,8.3947]
[1617775277191,13.0,2103.9,2102.9,2.5547]
[1617775277391,13.0,2103.9,2103.2,71.3846]
[1617775277791,13.0,2103.9,2103.3,5.78]
[1617775278191,13.0,2103.9,2103.4,30.0]
[1617775278390,13.0,2103.9,2103.6,2.90695]
[1617775278590,13.0,2103.9,2103.7,30.0]
[1617775278791,13.0,2103.9,2103.7,35.88]
[1617775280794,13.0,2103.9,2103.7,37.88]
[1617775280995,13.0,2103.9,2103.8,5.87]
[1617775281196,13.0,2103.9,2103.8,37.87]
[1617775281594,13.0,2103.9,2103.8,32.0]
[1617775281996,13.0,2103.9,2103.8,37.83]
[1617775285296,12.844,2103.9,2103.8,37.83]
[1617775289905,12.844,2103.9,2103.8,5.83]
[1617775290304,12.844,2103.9,2103.7,5.71]
[1617775290705,12.844,2103.9,2103.8,5.78]
[1617775290907,12.844,2103.9,2103.7,5.96]
[1617775291305,12.844,2103.9,2103.8,5.8]
[1617775291506,12.844,2103.9,2103.7,5.83]
[1617775291805,12.844,2103.9,2103.6,2.90695]
[1617775291806,12.844,2103.9,2103.8,5.82]
[1617775292105,12.844,2103.9,2103.7,5.83]
[1617775292706,12.844,2103.9,2103.8,54.7624]
[1617775293106,12.844,2103.9,2103.8,60.6024]
[1617775294209,12.844,2103.9,2103.8,90.6024]
[1617775294609,12.844,2103.9,2103.8,92.6024]
[1617775296410,12.844,2103.9,2103.8,37.84]
[1617775296811,13.8041,2103.9,2103.8,38.7881]
[1617775297611,13.8041,2103.9,2103.8,37.84]
[1617775297811,12.844,2103.9,2103.8,37.84]
[1617775300215,8.3525,2103.9,2103.8,37.84]
[1617775300414,7.3998,2103.9,2103.8,37.84]
[1617775303018,6.68,2103.9,2103.8,37.84]
[1617775303616,5.4856,2103.9,2103.8,37.84]
[1617775304015,5.2156,2103.9,2103.8,37.84]
[1617775306820,4.8202,2103.9,2103.8,37.84]
[1617775307822,4.5792,2103.9,2103.8,37.84]
[1617775310322,4.5792,2103.9,2103.8,40.3612]
[1617775310523,1.9656,2103.9,2103.8,40.3612]
[1617775311625,1.7265,2103.9,2103.8,40.3612]
[1617775312024,1.6465,2103.9,2103.8,40.3612]
[1617775312224,0.9489,2103.9,2103.8,40.3612]
[1617775312425,0.9489,2103.9,2103.8,37.84]
[1617775312825,1.9,2103.9,2103.8,37.84]
[1617775314025,0.3195,2103.9,2103.8,37.84]
[1617775316227,4.2586,2103.9,2103.8,37.84]
[1617775316427,4.2586,2103.9,2103.8,117.0825]
[1617775317329,2.90695,2104.8,2103.8,37.84]
[1617775317532,2.90695,2104.8,2103.9,69.5384]
[1617775317730,2.571,2105.9,2104.1,2.0]
[1617775317931,2.571,2105.9,2104.2,30.0]
[1617775318130,2.571,2105.9,2104.3,3.4]
[1617775318331,2.571,2105.9,2104.4,32.0]
[1617775318530,3.5076,2105.9,2105.3,2.90695]
[1617775318731,2.571,2105.9,2105.3,2.90695]
[1617775319132,2.571,2105.9,2105.8,73.3298]
[1617775319431,2.571,2105.9,2105.8,79.1798]
[1617775319830,3.5306,2105.9,2105.8,79.1798]
[1617775320431,2.571,2105.9,2105.8,79.1798]
[1617775320631,5.47795,2105.9,2105.8,79.1798]
[1617775321433,6.42765,2105.9,2105.8,79.1798]
[1617775321633,5.47795,2105.9,2105.8,79.1798]
[1617775323038,5.47795,2105.9,2105.8,5.85]
[1617775323435,5.47795,2105.9,2105.4,5.76]
[1617775323636,5.47795,2105.9,2105.8,76.997]
[1617775323836,5.47795,2105.9,2105.8,82.797]
[1617775325038,5.47795,2105.9,2105.8,5.8]
[1617775325439,5.47795,2105.9,2105.6,56.6525]
[1617775325640,6.42565,2105.9,2105.7,5.89]
[1617775325838,5.47795,2105.9,2105.8,5.74]
[1617775326038,5.47795,2105.9,2105.6,56.6525]
[1617775326439,5.47795,2105.9,2105.8,5.82]
[1617775326640,5.47795,2105.9,2105.7,5.74]
[1617775326839,8.75465,2105.9,2105.6,56.6525]
[1617775327041,8.75465,2105.9,2105.8,5.86]
[1617775327240,8.75465,2105.9,2105.7,5.79]
[1617775327642,7.80495,2105.9,2105.7,5.79]
[1617775327842,5.47795,2105.9,2105.7,5.79]
[1617775328644,6.42385,2105.9,2105.7,5.79]
[1617775329045,8.61835,2105.9,2105.7,5.79]
[1617775329243,8.61835,2105.9,2105.7,4.3571]
[1617775329443,8.61835,2105.9,2105.1,5.98]
[1617775329643,7.67245,2105.9,2105.8,5.77]
[1617775330043,7.67245,2105.9,2105.1,5.81]
[1617775330243,7.67245,2105.9,2105.0,2.90695]
[1617775330244,7.67245,2105.9,2105.4,59.6904]
[1617775330443,7.67245,2105.9,2105.8,5.98]
[1617775330643,7.67245,2105.9,2105.5,5.8]
[1617775330845,7.67245,2105.9,2105.8,5.82]
[1617775331244,7.67245,2105.9,2105.6,5.95]
[1617775331444,5.47795,2105.9,2105.6,5.95]
[1617775331644,5.47795,2105.9,2105.8,5.87]
[1617775331846,5.47795,2105.9,2105.7,5.81]
[1617775332247,5.47795,2105.9,2105.8,5.84]
[1617775332447,5.47795,2105.9,2105.2,5.81]
[1617775332646,2.90695,2105.3,2105.1,2.47]
[1617775332847,2.90695,2105.3,2105.0,62.60585]
[1617775333247,2.571,2105.9,2105.2,5.82]
[1617775333448,2.571,2105.9,2105.1,35.95]
[1617775333647,2.571,2105.9,2105.1,30.0]
[1617775333848,2.571,2105.9,2105.3,5.76]
[1617775334048,2.571,2105.9,2105.3,33.0693]
[1617775334448,2.571,2105.9,2105.4,5.78]
[1617775334649,2.571,2105.9,2105.8,2.90695]
[1617775335052,2.571,2105.9,2105.8,5.86]
[1617775335252,2.571,2105.9,2105.8,8.4058]
[1617775335451,2.571,2105.9,2105.8,2.5458]
[1617775335852,2.571,2105.9,2105.8,8.4658]
[1617775336657,2.571,2105.9,2105.8,11.37275]
[1617775340360,2.571,2105.9,2105.8,41.37275]
[1617775341259,2.571,2105.9,2105.8,11.37275]
[1617775346461,2.571,2105.9,2105.8,8.82695]
[1617775348463,2.571,2105.9,2105.8,38.82695]
[1617775349462,4.0,2106.1,2105.8,38.82695]
[1617775350468,4.0,2106.1,2105.9,61.9658]
[1617775350667,4.0,2106.1,2105.8,38.82695]
[1617775350869,4.0,2106.1,2106.0,5.86]
[1617775351067,4.0,2106.1,2106.0,35.86]
[1617775351267,4.0,2106.1,2106.0,30.0]
[1617775351467,4.0,2106.1,2106.0,35.77]
[1617775354170,2.90695,2106.6,2106.0,35.77]
[1617775354569,4.0,2106.1,2106.0,35.77]
[1617775354970,4.0,2106.1,2106.0,5.77]
[1617775358671,6.976,2106.1,2106.0,5.77]
[1617775358874,6.976,2106.1,2105.9,5.75]
[1617775359074,6.976,2106.1,2106.0,5.71]
[1617775359476,6.976,2106.1,2105.9,5.82]
[1617775359676,6.976,2106.1,2106.0,5.86]
[1617775359877,4.0,2106.1,2106.0,5.86]
[1617775360076,4.0,2106.1,2105.8,2.90695]
[1617775360077,4.0,2106.1,2105.9,5.74]
[1617775360476,4.0,2106.1,2106.0,5.89]
[1617775360677,4.0,2106.1,2105.9,5.89]
[1617775361077,4.0,2106.1,2106.0,5.71]
[1617775361278,4.0,2106.1,2105.9,5.98]
[1617775361479,4.0,2106.1,2106.0,5.79]
[1617775361881,4.0,2106.1,2105.9,5.83]
[1617775362080,4.0,2106.1,2106.0,5.97]
[1617775362481,4.0,2106.1,2105.9,5.97]
[1617775362681,4.0,2106.1,2106.0,5.93]
[1617775362884,6.90695,2106.1,2106.0,5.93]
[1617775363083,6.90695,2106.1,2105.5,2.90695]
[1617775363283,6.90695,2106.1,2105.6,5.97]
[1617775363485,6.90695,2106.1,2106.0,5.81]
[1617775363683,6.90695,2106.1,2105.7,66.1457]
[1617775364083,6.90695,2106.1,2106.0,5.95]
[1617775364283,6.90695,2106.1,2105.8,5.92]
[1617775364484,6.90695,2106.1,2105.7,66.1457]
[1617775364485,6.90695,2106.1,2106.0,5.91]
[1617775364783,6.90695,2106.1,2106.0,2.90695]
[1617775365185,6.90695,2106.1,2106.0,8.86695]
[1617775377603,6.90695,2106.1,2106.0,5.96]
[1617775377803,6.90695,2106.1,2105.2,5.96]
[1617775378206,6.90695,2106.1,2106.0,5.77]
[1617775378404,6.90695,2106.1,2105.2,5.98]
[1617775378805,6.90695,2106.1,2106.0,5.77]
[1617775379004,6.90695,2106.1,2105.5,2.90695]
[1617775379405,6.90695,2106.1,2106.0,5.98]
[1617775379604,6.90695,2106.1,2105.6,2.59]
[1617775380005,6.90695,2106.1,2106.0,5.93]
[1617775380205,6.90695,2106.1,2105.6,5.8]
[1617775380406,2.0,2106.0,2105.6,5.8]
[1617775380605,2.6595,2106.0,2105.5,2.90695]
[1617775380806,2.6595,2106.0,2105.6,5.82]
[1617775381006,2.6595,2106.0,2105.9,2.90695]
[1617775381406,2.6595,2106.0,2105.9,8.69695]
[1617775381605,4.0,2106.1,2105.9,8.69695]
[1617775383006,2.90695,2106.0,2105.9,8.69695]
[1617775384809,4.0,2106.1,2105.9,8.69695]
[1617775385010,4.0,2106.1,2105.9,11.38495]
[1617775387616,4.0,2106.1,2106.0,30.0]
[1617775388215,4.0,2106.1,2106.0,35.83]
[1617775389218,4.0,2106.1,2106.0,5.83]
[1617775390418,4.0,2106.1,2106.0,35.83]
[1617775391925,4.0,2106.1,2106.0,37.83]
[1617775392126,0.0001,2106.1,2106.0,38.7729]
[1617775392527,2.571,2107.6,2106.0,38.7729]
[1617775392727,2.571,2107.6,2106.2,2.0]
[1617775392928,2.571,2107.6,2106.4,2.0]
[1617775393127,2.571,2107.6,2107.5,2.90695]
[1617775393330,2.571,2107.6,2107.5,5.88195]
[1617775393527,2.571,2107.6,2107.5,11.61195]
[1617775397132,2.571,2107.6,2107.5,8.63695]
[1617775398534,0.01398936,2107.9,2107.7,70.5519]
[1617775398934,0.01398892,2108.0,2107.8,5.94]
[1617775399133,2.92093892,2108.0,2107.9,2.90695]
[1617775399534,2.92093892,2108.0,2107.9,8.72695]
[1617775399734,2.90695,2108.0,2107.9,8.72695]
[1617775400635,2.90695,2108.0,2107.9,5.82]
[1617775401236,2.90695,2108.0,2107.8,8.60695]
[1617775401436,5.91075,2108.0,2107.9,5.86]
[1617775401835,5.91075,2108.0,2107.8,2.90695]
[1617775402040,5.91075,2108.0,2107.9,5.89]
[1617775406040,2.90695,2108.0,2107.9,5.89]
[1617775407643,2.90695,2108.0,2107.9,62.8723]
[1617775412755,0.01392983,2109.0,2107.9,92.8723]